bitfinex/quotes_ETHUSD_20250603
["timestamp","ask_amount","ask_price","bid_price","bid_amount"]
[1748962530122,8.479,2651.5,2651.1,0.02]
[1748962530328,1.1509,2651.4,2650.1,0.02]
[1748962530525,9.6469,2651.4,2650.5,3.77276982]
[1748962530746,1.1509,2651.4,2650.5,3.77276982]
[1748962530897,1.1509,2651.4,2650.5,0.37727698]
[1748962531097,1.1509,2651.4,2650.2,10.9569305]
[1748962531303,1.1509,2651.4,2650.6,3.77264708]
[1748962531505,1.1509,2651.4,2650.2,14.73017359]
[1748962531689,1.1509,2651.4,2650.7,3.77251128]
[1748962531887,1.1509,2651.4,2650.6,3.77267948]
[1748962532202,1.1509,2651.4,2650.2,3.77316467]
[1748962532405,1.1509,2651.4,2650.1,3.79342756]
[1748962532618,8.0,2651.3,2650.1,0.02]
[1748962532821,1.29225715,2651.2,2650.3,3.77308528]
[1748962532994,3.154,2651.1,2650.4,3.77299515]
[1748962533193,13.573,2651.0,2650.2,3.77330012]
[1748962533391,13.573,2651.0,2650.1,3.79336653]
[1748962533603,13.573,2651.0,2650.7,3.77250659]
[1748962533821,3.154,2650.9,2650.1,0.02]
[1748962534139,1.1736,2650.8,2650.1,0.02]
[1748962535447,3.154,2650.7,2650.1,0.01671282]
[1748962536146,1.27,2650.6,2650.1,0.01671282]
[1748962536287,0.35354743,2650.5,2650.1,0.01671282]
[1748962536493,1.66380217,2650.5,2650.1,0.01671282]
[1748962537117,3.065,2650.4,2650.1,0.01671282]
[1748962537305,8.398,2650.3,2650.1,0.01671282]
[1748962537508,0.35354743,2650.5,2650.1,0.01671282]
[1748962537735,3.065,2650.4,2650.1,0.01671282]
[1748962537931,1.06979977,2650.3,2650.1,0.01671282]
[1748962538152,3.065,2650.4,2650.1,0.01671282]
[1748962538153,3.066,2650.4,2650.1,0.01671282]
[1748962538892,3.066,2650.4,2649.1,3.46891201]
[1748962539090,0.35354743,2650.5,2649.8,3.77383354]
[1748962539287,0.35354743,2650.5,2648.9,4.32512857]
[1748962539288,11.437,2650.3,2648.9,4.32512857]
[1748962539525,1.1437,2650.2,2649.6,3.77403185]
[1748962539701,1.1437,2650.2,2649.6,3.77402406]
[1748962539891,3.066,2650.1,2649.0,11.38944336]
[1748962540157,3.066,2650.1,2649.4,3.77430211]
[1748962540294,3.066,2650.1,2649.4,3.77436474]
[1748962540492,0.35354743,2650.5,2648.8,3.77529447]
[1748962540685,3.066,2650.0,2649.3,3.77456912]
[1748962540886,4.2078,2650.0,2649.4,3.77436039]
[1748962541136,4.2078,2650.0,2649.3,3.77458155]
[1748962541315,4.2078,2650.0,2648.9,3.77515194]
[1748962541500,1.1418,2650.0,2649.2,3.77465171]
[1748962541701,0.35354743,2650.5,2649.6,3.77405219]
[1748962541899,11.398,2650.4,2649.0,0.55]
[1748962542101,11.398,2650.4,2649.7,3.77396323]
[1748962542290,11.398,2650.4,2649.6,3.77408178]
[1748962542494,3.066,2650.4,2648.9,0.55]
[1748962542694,11.72695474,2650.3,2649.8,3.7738026]
[1748962542888,11.72695474,2650.3,2648.9,0.55]
[1748962542889,0.34195474,2650.3,2649.5,3.77417374]
[1748962543094,0.34195474,2650.3,2648.9,0.55]
[1748962543095,3.066,2650.2,2649.6,3.77414474]
[1748962543329,3.066,2650.2,2649.7,3.77397068]
[1748962543628,3.066,2650.2,2649.4,3.77435115]
[1748962543931,3.066,2650.2,2648.9,3.77510181]
[1748962544232,0.35354743,2650.5,2648.9,3.77510181]
[1748962544233,1.1913,2650.0,2649.3,3.77449507]
[1748962544526,1.25543,2649.9,2648.7,0.6708]
[1748962544756,1.1913,2650.0,2649.1,3.77481641]
[1748962544933,1.1913,2650.0,2649.7,3.77393681]
[1748962545230,2.978,2649.9,2649.6,3.77411648]
[1748962545433,2.978,2649.9,2649.8,3.77386972]
[1748962545735,1.1913,2650.0,2649.9,3.77372731]
[1748962546141,2.978,2650.1,2650.0,3.7735849]
[1748962546506,1.1703,2650.4,2650.3,3.77315775]
[1748962546823,1.1703,2650.4,2650.0,3.77347312]
[1748962547022,1.1703,2650.4,2650.3,3.77315775]
[1748962547224,1.62048474,2650.4,2650.0,3.77346919]
[1748962547430,4.59848474,2650.4,2650.0,3.77357294]
[1748962547604,4.59848474,2650.4,2650.2,3.77319417]
[1748962547804,4.59848474,2650.4,2650.3,3.77315775]
[1748962548045,4.1483,2650.4,2650.3,3.77315775]
[1748962548657,1.1703,2650.4,2650.3,3.77315775]
[1748962549006,3.33154743,2650.5,2650.2,3.77316707]
[1748962549264,3.33154743,2650.5,2650.2,3.77316342]
[1748962549480,3.33154743,2650.5,2649.6,13.08336687]
[1748962549766,3.66470217,2650.5,2650.3,3.77315592]
[1748962550058,3.66470217,2650.5,2649.6,13.08336687]
[1748962550209,3.66470217,2650.5,2650.3,3.77314816]
[1748962550413,0.35350107,2650.4,2649.6,13.08336687]
[1748962550726,3.66470217,2650.5,2650.3,3.77304567]
[1748962550931,3.66470217,2650.5,2650.4,3.77301539]
[1748962551450,0.35354743,2650.5,2650.4,3.77301539]
[1748962552834,0.70699883,2650.5,2650.4,3.77301539]
[1748962553140,0.35354743,2650.5,2650.4,3.77301539]
[1748962553338,0.35354743,2650.5,2650.4,4.32301539]
[1748962555167,0.35354743,2650.5,2650.4,3.77301539]
[1748962555362,0.67810217,2650.5,2650.1,3.77336414]
[1748962555576,0.67810217,2650.5,2650.3,3.77308798]
[1748962555876,0.67810217,2650.5,2650.0,3.7734593]
[1748962556095,0.67810217,2650.5,2649.7,0.57361545]
[1748962556579,1.2235,2650.3,2649.6,0.57361545]
[1748962556811,1.2235,2650.3,2650.1,3.77340946]
[1748962556941,0.35354743,2650.5,2650.2,3.77330012]
[1748962557138,0.35354743,2650.5,2650.3,3.77302921]
[1748962557385,0.35354743,2650.5,2650.3,3.77303471]
[1748962557571,0.35354743,2650.5,2650.4,3.77301539]
[1748962557768,0.35354743,2650.5,2650.2,3.77322145]
[1748962558004,0.35354743,2650.5,2649.7,0.57361545]
[1748962558270,0.35354743,2650.5,2649.8,3.77375587]
[1748962558482,0.35354743,2650.5,2650.0,3.77352266]
[1748962558768,0.35354743,2650.5,2649.8,3.77378502]
[1748962558972,0.35354743,2650.5,2649.6,3.77406276]
[1748962559174,0.35354743,2650.5,2649.5,0.57361545]
[1748962559505,0.35354743,2650.5,2649.7,3.77393273]
[1748962559707,0.35354743,2650.5,2649.8,3.77386768]
[1748962560124,0.8413584,2650.5,2649.6,3.77415458]
[1748962560300,0.8413584,2650.5,2649.3,3.77455064]
[1748962560301,1.2744,2650.4,2649.4,3.77433719]
[1748962560632,0.35358579,2650.3,2649.7,3.77394118]
[1748962560783,0.35358579,2650.3,2649.1,4.34846651]
[1748962561149,2.892,2650.2,2649.4,12.5335787]
[1748962561408,0.35358579,2650.3,2650.2,3.77330012]
[1748962562217,0.35358579,2650.3,2650.2,4.32330012]
[1748962562399,0.35358579,2650.3,2650.2,5.20940012]
[1748962562716,0.35358579,2650.3,2650.2,13.20940012]
[1748962563288,0.02,2650.9,2650.2,13.20940012]
[1748962563289,0.02,2650.9,2650.8,4.32244605]
[1748962563510,0.02,2650.9,2650.8,13.08168154]
[1748962563721,0.02,2651.9,2651.8,3.77102345]
[1748962563917,0.02,2651.9,2650.9,0.55]
[1748962563918,0.02,2651.9,2651.1,0.58413817]
[1748962564425,0.02,2651.9,2651.0,8.75923549]
[1748962564426,1.2475,2651.7,2651.0,3.77214501]
[1748962564591,1.2475,2651.7,2651.0,3.77204578]
[1748962564793,8.049,2651.6,2650.5,0.37321338]
[1748962565089,1.2475,2651.7,2650.5,0.37321338]
[1748962565090,1.3209,2651.4,2650.6,3.77261059]
[1748962565303,2.806,2651.3,2650.1,0.58413817]
[1748962565504,2.806,2651.3,2650.0,5.24370644]
[1748962565813,2.806,2651.3,2650.6,3.77265636]
[1748962565987,1.2774,2651.2,2650.1,3.77344251]
[1748962566189,1.2774,2651.2,2649.7,8.0]
[1748962566190,0.40834,2651.1,2649.9,0.58413817]
[1748962566385,0.40834,2651.1,2650.4,3.77301224]
[1748962566584,0.40834,2651.1,2650.7,3.77258392]
[1748962566786,0.40834,2651.1,2650.1,3.77344251]
[1748962566998,0.40834,2651.1,2650.0,12.5327262]
[1748962567215,0.40834,2651.1,2650.4,3.77294031]
[1748962567440,0.40834,2651.1,2650.0,8.75923549]
[1748962567441,0.40834,2651.1,2650.5,3.77285632]
[1748962567910,0.969774,2651.0,2650.6,3.77260541]
[1748962568118,0.40834,2651.1,2650.6,3.77260541]
[1748962568482,0.40834,2651.1,2650.7,3.77246149]
[1748962568890,13.575,2651.5,2650.7,8.75923549]
[1748962569314,13.575,2651.5,2650.9,3.77222739]
[1748962569527,1.2433,2651.4,2650.3,9.64533549]
[1748962569825,1.2433,2651.4,2650.7,3.77250201]
[1748962570032,1.2433,2651.4,2650.6,3.77263917]
[1748962570330,1.2433,2651.4,2650.6,3.7726597]
[1748962570331,1.48183,2651.3,2650.6,3.7726597]
[1748962570491,1.2244,2651.1,2650.0,0.58420925]
[1748962570842,1.2244,2650.5,2648.7,10.22954474]
[1748962571151,1.2286,2650.3,2649.0,8.75923549]
[1748962571305,10.802,2650.2,2649.2,3.77472444]
[1748962571499,10.802,2650.2,2649.1,3.79484068]
[1748962571691,10.802,2650.2,2649.2,3.77472444]
[1748962571891,10.802,2650.2,2649.4,3.7743407]
[1748962572091,1.20306,2650.1,2649.3,8.75923549]
[1748962572396,1.2286,2650.3,2649.6,12.53336971]
[1748962572703,1.2286,2650.3,2649.2,8.75923549]
[1748962572914,1.2286,2650.3,2649.5,8.75923549]
[1748962573241,1.2286,2650.3,2649.8,3.77375033]
[1748962573398,1.2286,2650.3,2649.9,3.77372594]
[1748962573599,1.2286,2650.3,2649.3,3.77454851]
[1748962573801,1.2286,2650.3,2649.8,3.77386805]
[1748962574007,1.2286,2650.3,2649.5,0.8861]
[1748962574204,1.2286,2650.3,2649.8,8.75923549]
[1748962574500,1.2286,2650.3,2650.1,3.77339258]
[1748962574852,1.2286,2650.3,2649.1,0.02]
[1748962575133,8.34580459,2650.4,2649.1,0.02]
[1748962575134,1.3449,2650.1,2649.1,0.02]
[1748962575494,5.11882987,2649.8,2649.1,0.02]
[1748962575736,1.3449,2649.7,2649.1,0.02]
[1748962575940,7.967,2649.6,2649.1,0.02]
[1748962578915,1.2737,2649.9,2649.1,0.02]
[1748962579224,1.2737,2649.9,2649.4,3.77437236]
[1748962579628,1.2737,2649.9,2649.1,0.02]
[1748962580150,1.2737,2649.9,2649.2,3.77461323]
[1748962580452,1.2737,2649.9,2649.2,3.77464183]
[1748962580653,1.2737,2649.9,2649.1,3.79477809]
[1748962580954,9.3296,2649.5,2649.1,0.02]
[1748962581156,1.2534,2649.3,2649.1,0.02]
[1748962581341,3.77472444,2649.2,2649.1,0.02]
[1748962581546,1.2534,2649.1,2648.1,0.02]
[1748962582067,1.2534,2649.1,2648.2,3.77607102]
[1748962582249,1.2355,2649.0,2648.1,0.02]
[1748962582554,0.91595,2648.9,2648.1,0.02]
[1748962582725,1.2355,2648.8,2648.1,0.02]
[1748962583954,1.2355,2648.8,2648.1,3.79618367]
[1748962584165,1.2355,2648.8,2648.1,0.02]
[1748962584455,1.2355,2648.8,2648.1,3.79626962]
[1748962584643,0.215145,2648.7,2648.1,3.79626962]
[1748962584953,0.215145,2648.7,2648.1,3.79622317]
[1748962585253,0.215145,2648.7,2648.1,3.79620624]
[1748962585555,0.215145,2648.7,2648.2,3.7760674]
[1748962585858,0.215145,2648.7,2648.1,3.79625307]
[1748962586155,0.215145,2648.7,2648.1,0.02]
[1748962586362,1.2355,2648.8,2648.3,3.77589001]
[1748962586769,1.2355,2648.8,2648.1,0.02]
[1748962587069,1.2355,2648.8,2648.1,70.02]
[1748962588329,1.2355,2648.8,2648.7,3.775437]
[1748962588524,1.2355,2648.8,2648.3,3.7759375]
[1748962588747,1.2355,2648.8,2648.1,73.79619407]
[1748962588954,1.2355,2648.8,2648.2,3.77606464]
[1748962589148,1.2355,2648.8,2648.3,3.77592123]
[1748962589364,1.2355,2648.8,2648.2,3.77611143]
[1748962589562,1.2355,2648.8,2648.1,70.02]
[1748962590072,1.2355,2648.8,2648.1,73.79618078]
[1748962590278,1.2355,2648.8,2648.1,70.02]
[1748962591060,1.2355,2648.8,2648.2,3.77613702]
[1748962591261,2.14945,2648.8,2648.2,3.77613702]
[1748962591462,2.14945,2648.8,2648.1,70.02]
[1748962591463,1.2355,2648.8,2648.1,70.02]
[1748962593184,9.1105,2648.8,2648.1,70.02]
[1748962593385,9.1105,2648.8,2648.1,73.79620925]
[1748962593561,9.1105,2648.8,2648.1,70.02]
[1748962594484,9.186,2648.7,2648.1,70.02]
[1748962594649,10.1046,2648.7,2648.1,70.02]
[1748962595146,1.33,2648.6,2648.1,70.02]
[1748962595986,1.33,2648.6,2648.1,73.79622134]
[1748962596371,1.2885,2648.6,2648.1,60.18046408]
[1748962596685,1.2885,2648.4,2648.1,60.18046408]
[1748962596907,8.84215,2648.3,2648.1,60.18046408]
[1748962597681,1.2381,2648.2,2648.1,60.18046408]
[1748962598042,1.2381,2648.2,2648.1,53.62295622]
[1748962598283,9.1381,2648.2,2648.1,53.62295622]
[1748962598589,1.2381,2648.2,2648.1,53.62295622]
[1748962598994,9.1311,2648.2,2648.1,53.62295622]
[1748962599761,9.1181,2648.2,2648.1,53.62295622]
[1748962600392,1.2381,2648.2,2648.1,53.62295622]
[1748962601376,1.2381,2648.2,2648.1,57.39924865]
[1748962601715,9.1207,2648.5,2648.1,57.39924865]
[1748962601898,1.2657,2648.5,2648.1,53.62295622]
[1748962604614,2.17647,2648.5,2648.1,53.62295622]
[1748962605116,7.815,2648.4,2648.1,53.62295622]
[1748962606022,1.2657,2648.5,2648.3,8.75923549]
[1748962606245,0.36934036,2649.2,2648.3,8.75923549]
[1748962606396,7.797,2649.2,2649.0,8.75923549]
[1748962606721,8.5767,2649.2,2649.0,8.75923549]
[1748962606917,8.5767,2649.2,2648.3,5.02543618]
[1748962607217,1.2829,2649.1,2648.6,8.75923549]
[1748962607791,1.2829,2649.1,2648.5,8.75923549]
[1748962609126,1.2829,2649.1,2648.5,8.70923549]
[1748962609295,1.02368908,2649.0,2648.5,8.70923549]
[1748962609886,7.757,2648.9,2648.5,0.13406432]
[1748962610936,7.757,2648.9,2648.4,8.75923549]
[1748962611093,7.741,2648.8,2648.4,8.75923549]
[1748962612130,7.73,2648.7,2648.4,8.75923549]
[1748962612721,1.02368908,2649.0,2648.4,8.75923549]
[1748962613023,7.717,2648.6,2648.4,8.75923549]
[1748962614439,7.717,2648.6,2648.1,53.62295622]
[1748962614440,1.2946,2648.5,2648.1,62.38219171]
[1748962614744,1.2946,2648.5,2648.1,53.62295622]
[1748962615633,5.0703604,2648.5,2648.1,53.62295622]
[1748962615802,2.558,2648.4,2648.1,53.62295622]
[1748962616002,0.38526,2648.3,2648.1,53.62295622]
[1748962616657,7.678,2648.2,2648.1,53.62295622]
[1748962617219,7.672,2648.2,2648.1,53.62295622]
[1748962617959,7.664,2648.2,2648.1,53.62295622]
[1748962618253,8.9509,2648.2,2648.1,53.62295622]
[1748962618457,10.133316,2648.2,2648.1,53.62295622]
[1748962618855,10.129316,2648.2,2648.1,53.62295622]
[1748962619672,2.476316,2648.2,2648.1,53.62295622]
[1748962619979,8.9289,2648.2,2648.1,53.62295622]
[1748962620591,1.2869,2648.2,2648.1,53.62295622]
[1748962620874,15.25304983,2648.2,2648.1,53.62295622]
[1748962621176,23.80304983,2648.2,2648.1,51.97539826]
[1748962621384,27.43688089,2648.2,2648.1,43.30675863]
[1748962621671,27.591004,2648.2,2648.1,43.30675863]
[1748962622049,31.561004,2648.2,2648.1,41.99485863]
[1748962622245,23.80085417,2648.2,2648.1,41.99485863]
[1748962622449,27.577004,2648.2,2648.1,41.99485863]
[1748962623370,31.547004,2648.2,2648.1,41.99485863]
[1748962623534,48.20623949,2648.2,2648.1,41.99485863]
[1748962623735,48.20623949,2648.2,2648.1,41.70406137]
[1748962623967,35.38550843,2648.2,2648.1,16.0791345]
[1748962624168,21.23950843,2648.2,2648.1,15.6101345]
[1748962624369,15.03827294,2648.2,2648.1,15.6101345]
[1748962624575,22.63427294,2648.2,2648.1,15.59083762]
[1748962625572,22.62527294,2648.2,2648.1,15.59083762]
[1748962626076,22.94165883,2648.2,2648.1,15.59083762]
[1748962626261,2.87438589,2648.2,2648.1,15.59083762]
[1748962626460,22.12753572,2648.2,2648.1,15.59083762]
[1748962626646,22.67753572,2648.2,2648.1,15.59083762]
[1748962627051,30.67753572,2648.2,2648.1,15.43576436]
[1748962628276,30.83443504,2648.2,2648.1,15.43576436]
[1748962628939,39.59367053,2648.2,2648.1,15.43576436]
[1748962629134,3.77746652,2647.3,2647.1,0.02]
[1748962629335,13.7995763,2647.2,2647.1,0.02]
[1748962630041,22.3495763,2647.2,2647.1,0.02]
[1748962630538,30.2495763,2647.2,2647.1,0.02]
[1748962630742,30.7695763,2647.2,2647.1,0.02]
[1748962630964,31.15080376,2647.2,2647.1,0.02]
[1748962631166,35.10680376,2647.2,2647.1,0.02]
[1748962631474,3.77881417,2646.4,2646.1,0.02]
[1748962631770,10.008,2646.3,2646.1,0.02]
[1748962632538,3.77900385,2646.2,2646.1,0.02]
[1748962632989,9.991,2646.2,2646.1,0.02]
[1748962633287,13.77000385,2646.2,2646.1,0.02]
[1748962634495,7.9,2646.4,2646.1,0.02]
[1748962634653,2.476,2646.2,2646.1,0.02]
[1748962635176,9.974,2646.2,2646.1,0.02]
[1748962635383,13.75300385,2646.2,2646.1,0.02]
[1748962635696,17.968,2646.2,2646.1,0.02]
[1748962636041,21.74700385,2646.2,2646.1,0.02]
[1748962636381,11.77900385,2646.2,2646.1,0.02]
[1748962636580,21.73900385,2646.2,2646.1,0.02]
[1748962636942,10.476,2646.2,2646.1,0.02]
[1748962637150,17.958,2646.2,2646.1,0.02]
[1748962637506,21.73700385,2646.2,2646.1,0.02]
[1748962637837,22.28700385,2646.2,2646.1,0.02]
[1748962638075,17.958,2646.2,2646.1,0.02]
[1748962638449,8.0,2646.2,2646.1,0.02]
[1748962638649,2.476,2646.2,2646.1,0.02]
[1748962638855,9.938,2646.2,2646.1,0.02]
[1748962639060,9.934,2646.2,2646.1,0.02]
[1748962639460,9.934,2646.2,2645.1,3.80051172]
[1748962639461,9.934,2646.2,2645.1,3.78050604]
[1748962639662,9.934,2646.2,2645.2,0.3780506]
[1748962640470,13.71300907,2646.2,2645.0,3.78063691]
[1748962640790,0.2527,2646.3,2645.2,3.78032287]
[1748962640997,9.835,2646.1,2644.7,8.75923549]
[1748962641290,9.835,2646.1,2645.1,3.78043827]
[1748962641501,0.2527,2646.3,2645.1,0.75610719]
[1748962641653,2.395,2646.2,2645.2,8.01953281]
[1748962641998,0.02,2646.9,2645.2,8.01953281]
[1748962641999,9.2994,2646.7,2645.6,3.77981639]
[1748962642193,13.60044073,2646.6,2645.4,3.78006715]
[1748962642484,13.60044073,2646.6,2645.1,0.75610719]
[1748962642485,3.77878544,2646.4,2645.2,5.1344418]
[1748962642687,11.79816551,2646.5,2645.3,3.7802892]
[1748962642985,3.77872909,2646.4,2645.2,5.13445563]
[1748962643149,8.01953281,2646.5,2645.2,1.3541]
[1748962643350,7.418,2646.4,2645.3,3.78028804]
[1748962643588,2.395,2646.6,2645.2,1.56512072]
[1748962643756,7.412,2646.5,2645.4,3.78007062]
[1748962643966,9.807,2646.4,2645.3,3.78019548]
[1748962644266,9.807,2646.4,2645.4,3.78007115]
[1748962644466,7.404,2646.3,2645.4,3.78007115]
[1748962644708,7.404,2646.3,2645.3,3.78028957]
[1748962644880,7.404,2646.3,2645.5,3.77997409]
[1748962645078,7.404,2646.3,2645.4,3.78003872]
[1748962645284,9.794,2646.2,2645.2,1.56512072]
[1748962645484,9.794,2646.2,2645.3,3.78017235]
[1748962645882,9.794,2646.2,2645.2,1.56512072]
[1748962646192,1.2994,2646.7,2645.2,1.56512072]
[1748962646193,2.395,2646.1,2645.4,3.78014504]
[1748962646371,7.387,2646.0,2645.4,5.11656329]
[1748962646795,7.387,2646.0,2645.2,13.36502643]
[1748962646796,7.387,2646.0,2645.3,3.78020372]
[1748962647106,7.387,2646.0,2645.2,5.13445754]
[1748962647406,7.387,2646.0,2645.3,3.78027548]
[1748962647904,9.767,2645.9,2645.4,3.780077]
[1748962648106,9.767,2645.9,2645.3,3.78020311]
[1748962648573,9.767,2645.9,2645.3,3.78017262]
[1748962649132,9.767,2645.9,2645.2,5.13446407]
[1748962649416,9.767,2645.9,2645.2,1.3541]
[1748962649708,9.767,2645.9,2645.3,3.78027706]
[1748962649906,7.355,2645.8,2645.6,3.77985795]
[1748962650113,2.395,2646.5,2645.5,8.01953281]
[1748962650333,2.395,2646.5,2646.0,1.3502]
[1748962650605,7.353,2646.4,2645.6,5.12999881]
[1748962650971,7.353,2646.4,2645.6,1.3502]
[1748962651271,7.353,2646.4,2645.6,5.1299675]
[1748962651874,7.353,2646.4,2645.6,1.3502]
[1748962652069,2.395,2646.3,2645.7,3.77971803]
[1748962652270,3.7778767,2647.0,2645.8,3.77947191]
[1748962652612,2.395,2646.8,2646.1,3.77914204]
[1748962652914,7.337,2646.7,2646.0,3.77923168]
[1748962653610,0.02,2646.9,2646.1,3.7790718]
[1748962653910,9.64,2646.8,2646.2,1.2977]
[1748962655291,7.31,2646.7,2646.2,1.2977]
[1748962656819,7.31,2646.7,2645.9,5.08961471]
[1748962656990,7.31,2646.7,2646.0,3.77920778]
[1748962657404,0.02,2646.9,2646.0,3.77920778]
[1748962657582,9.605,2646.8,2645.9,1.3102]
[1748962657783,2.315,2646.8,2646.1,3.77907967]
[1748962658002,7.285,2646.7,2646.0,3.77922757]
[1748962658399,7.285,2646.7,2645.9,1.3102]
[1748962659327,0.02,2646.9,2645.9,1.3102]
[1748962659538,0.02,2646.9,2645.6,0.51301863]
[1748962659539,7.294,2646.9,2646.5,3.77843819]
[1748962659822,0.02,2646.9,2646.5,1.2751]
[1748962660029,7.273,2646.8,2646.5,1.2751]
[1748962661186,9.573,2646.7,2646.2,5.0540645]
[1748962661391,9.573,2646.7,2646.3,3.77884239]
[1748962661592,9.573,2646.7,2646.2,5.0540275]
[1748962661795,0.02,2646.9,2646.2,5.0540275]
[1748962662144,0.02,2646.9,2646.2,1.2751]
[1748962662287,9.566,2646.8,2646.4,3.7786219]
[1748962662487,2.314,2646.8,2646.4,3.7786219]
[1748962662686,7.248,2646.7,2646.4,3.7786219]
[1748962662922,9.559,2646.8,2646.4,3.7786219]
[1748962663124,9.559,2646.8,2646.5,3.77855108]
[1748962663323,9.559,2646.8,2646.3,3.77885808]
[1748962663629,9.559,2646.8,2646.4,3.77862005]
[1748962663827,9.559,2646.8,2646.2,1.2751]
[1748962664059,0.02,2646.9,2646.5,3.7785739]
[1748962664330,2.314,2646.8,2646.7,5.04658994]
[1748962664710,2.314,2646.8,2646.7,1.2683]
[1748962665092,2.314,2646.8,2646.3,3.7787969]
[1748962665340,2.314,2646.8,2646.2,3.77899292]
[1748962665542,2.314,2646.8,2646.1,3.77903129]
[1748962665723,2.314,2646.8,2646.2,3.7789062]
[1748962666250,2.314,2646.8,2646.2,3.77890068]
[1748962666556,1.285,2646.7,2645.8,8.01953281]
[1748962666744,0.02,2646.9,2646.2,5.13546921]
[1748962666745,9.546,2646.6,2646.2,5.13546921]
[1748962666946,7.232,2646.6,2646.3,3.77882971]
[1748962667241,7.229,2646.7,2646.2,1.3565]
[1748962667552,7.229,2646.7,2646.3,3.77876639]
[1748962667755,7.229,2646.7,2646.2,1.3565]
[1748962667756,7.229,2646.7,2646.2,5.1354267]
[1748962667963,7.229,2646.7,2646.2,1.3565]
[1748962668116,7.229,2646.7,2646.2,5.13550271]
[1748962668309,7.229,2646.7,2646.2,1.3565]
[1748962668924,7.229,2646.7,2646.2,5.13550328]
[1748962669119,7.229,2646.7,2646.2,1.3565]
[1748962669332,7.229,2646.7,2646.2,5.13550144]
[1748962669540,7.229,2646.7,2646.2,1.3565]
[1748962670455,0.02,2646.9,2646.2,1.87006369]
[1748962670634,0.02,2646.9,2646.7,3.77815006]
[1748962670828,0.02,2646.9,2646.8,3.77814719]
[1748962671156,0.02,2646.9,2646.8,5.04094719]
[1748962671475,0.02,2646.9,2646.8,1.2628]
[1748962672282,0.02,2646.9,2646.8,9.28233281]
[1748962672421,0.02,2646.9,2646.8,1.2628]
[1748962673244,0.02,2646.9,2646.5,1.2702]
[1748962674276,7.185,2646.8,2646.5,1.2702]
[1748962674941,7.179,2646.8,2646.5,1.2702]
[1748962675636,0.02,2646.9,2646.5,1.77509979]
[1748962676096,0.02,2646.9,2646.5,5.04868417]
[1748962676388,0.02,2646.9,2646.5,1.2702]
[1748962676677,0.02,2646.9,2646.3,3.77883214]
[1748962676884,0.02,2646.9,2646.2,1.3776]
[1748962677192,0.02,2646.9,2646.2,5.15652377]
[1748962677477,0.02,2646.9,2646.3,3.77885731]
[1748962677776,0.02,2646.9,2646.2,1.3776]
[1748962677941,7.16,2646.8,2646.2,1.3776]
[1748962679345,7.16,2646.8,2646.2,5.15659138]
[1748962679545,7.16,2646.8,2646.2,1.3776]
[1748962680386,2.234,2646.7,2646.0,3.77924416]
[1748962680543,2.234,2646.7,2646.0,3.77928949]
[1748962680743,2.234,2646.7,2646.3,3.77878715]
[1748962680939,9.368,2646.7,2646.4,3.77870257]
[1748962681601,0.02,2646.9,2646.5,3.77857547]
[1748962681889,0.02,2646.9,2646.5,1.3921]
[1748962682061,0.02,2646.9,2646.5,5.17057466]
[1748962682392,0.02,2646.9,2646.6,3.77842125]
[1748962682595,0.02,2646.9,2646.6,3.77834195]
[1748962683262,0.02,2646.9,2646.5,5.17056703]
[1748962683458,0.02,2646.9,2646.7,3.77827104]
[1748962683785,0.02,2646.9,2646.8,3.77814719]
[1748962684140,0.02,2646.9,2646.8,5.05904719]
[1748962684454,0.02,2647.9,2647.8,3.77672029]
[1748962685745,0.02,2647.9,2647.7,1.3531]
[1748962685945,0.02,2647.9,2647.4,3.77725269]
[1748962686145,0.02,2647.9,2647.6,3.77697982]
[1748962686377,0.02,2647.9,2647.6,3.77692625]
[1748962686682,0.02,2647.9,2647.5,8.01953281]
[1748962686878,0.02,2647.9,2647.5,9.32948587]
[1748962687283,0.02,2647.9,2647.6,3.77700558]
[1748962687480,0.02,2647.9,2647.3,1.3026]
[1748962687687,0.02,2647.9,2647.4,3.77715964]
[1748962687987,0.02,2647.9,2647.6,3.77699484]
[1748962688480,0.02,2647.9,2647.5,3.7770793]
[1748962688882,0.02,2647.9,2647.3,1.3026]
[1748962689087,0.02,2647.9,2647.4,3.77716401]
[1748962689300,0.02,2647.9,2647.5,3.77709074]
[1748962689478,0.02,2647.9,2647.6,3.77693003]
[1748962689682,0.02,2647.9,2647.5,3.77707684]
[1748962690189,0.02,2647.9,2647.4,3.7772163]
[1748962690660,0.02,2647.9,2647.7,3.77684063]
[1748962690865,0.02,2647.9,2647.3,1.3026]
[1748962691365,0.02,2647.9,2647.8,3.77672029]
[1748962691566,0.02,2647.9,2647.3,2.61258091]
[1748962691804,0.02,2647.9,2647.5,3.77700967]
[1748962692194,0.02,2647.9,2647.3,2.61258091]
[1748962692376,0.02,2647.9,2647.8,3.77672029]
[1748962692899,0.02,2647.9,2647.8,5.10442029]
[1748962693388,0.02,2647.9,2647.5,1.3277]
[1748962693566,0.02,2647.9,2647.8,3.77672029]
[1748962694069,0.02,2647.9,2647.6,3.77698021]
[1748962694796,0.02,2647.9,2647.5,5.10477987]
[1748962695107,0.02,2647.9,2647.4,3.77721376]
[1748962695310,0.02,2647.9,2647.5,3.77704997]
[1748962695480,0.02,2647.9,2647.5,3.77703693]
[1748962695688,0.02,2647.9,2647.5,3.7770748]
[1748962696115,0.02,2647.9,2647.6,3.7769625]
[1748962696516,0.02,2647.9,2647.3,11.79694616]
[1748962696816,0.02,2647.9,2647.6,3.77691589]
[1748962696969,0.02,2647.9,2647.8,3.77672029]
[1748962697170,0.02,2647.9,2647.5,3.77710331]
[1748962697385,0.02,2647.9,2647.7,3.77685431]
[1748962697811,0.02,2647.9,2647.6,3.77688158]